[Event "*** Titled Tuesday Blitz"]
[Site "Chess.com"]
[Date "2020.05.12"]
[Round "9"]
[White "Keks2017"]
[Black "elohunter1999"]
[Result "0-1"]
[WhiteElo "2449"]
[BlackElo "2581"]
[TimeControl "180+1"]
[EndTime "11:43:07 PDT"]
[Termination "elohunter1999 won by resignation"]

1. e4 {[%clk 0:02:59.9]} 1... c5 {[%clk 0:02:58.4]} 2. d3 {[%clk 0:02:59.9]}
2... Nc6 {[%clk 0:02:56.7]} 3. g3 {[%clk 0:02:59.8]} 3... g6 {[%clk 0:02:56.1]}
4. Bg2 {[%clk 0:02:59.9]} 4... Bg7 {[%clk 0:02:55.8]} 5. f4 {[%clk 0:03:00]}
5... d6 {[%clk 0:02:52.6]} 6. Nf3 {[%clk 0:02:59.9]} 6... e6 {[%clk 0:02:52.2]}
7. O-O {[%clk 0:02:59.3]} 7... Nge7 {[%clk 0:02:51.6]} 8. c3 {[%clk 0:02:58.8]}
8... O-O {[%clk 0:02:51]} 9. Be3 {[%clk 0:02:58.6]} 9... b6 {[%clk 0:02:49.9]}
10. Bf2 {[%clk 0:02:58.4]} 10... Bb7 {[%clk 0:02:45.4]} 11. Re1 {[%clk
0:02:57.9]} 11... Qd7 {[%clk 0:02:43.8]} 12. a4 {[%clk 0:02:57.6]} 12... Rae8
{[%clk 0:02:32.5]} 13. Na3 {[%clk 0:02:57.1]} 13... f5 {[%clk 0:02:17.1]} 14.
Nc4 {[%clk 0:02:52.2]} 14... h6 {[%clk 0:02:09.1]} 15. Qb3 {[%clk 0:02:51.1]}
15... Kh7 {[%clk 0:01:46.5]} 16. a5 {[%clk 0:02:50.3]} 16... Nxa5 {[%clk
0:01:30.7]} 17. Nxa5 {[%clk 0:02:49.6]} 17... bxa5 {[%clk 0:01:31.1]} 18. Rxa5
{[%clk 0:02:44.1]} 18... a6 {[%clk 0:01:27.6]} 19. Raa1 {[%clk 0:02:42.6]} 19...
Rb8 {[%clk 0:01:24.2]} 20. Qa3 {[%clk 0:02:34.7]} 20... Nc6 {[%clk 0:01:20.6]}
21. Rad1 {[%clk 0:02:22.2]} 21... Qc7 {[%clk 0:01:07.1]} 22. exf5 {[%clk
0:02:19.6]} 22... exf5 {[%clk 0:01:06.1]} 23. d4 {[%clk 0:02:19.3]} 23... cxd4
{[%clk 0:01:02]} 24. cxd4 {[%clk 0:02:18.4]} 24... Ne7 {[%clk 0:00:57.7]} 25.
Rc1 {[%clk 0:02:14.9]} 25... Qd7 {[%clk 0:00:56.9]} 26. Qa5 {[%clk 0:02:07.2]}
26... Nd5 {[%clk 0:00:52.6]} 27. Nh4 {[%clk 0:01:59.5]} 27... Qf7 {[%clk
0:00:51.1]} 28. Qa3 {[%clk 0:01:36]} 28... Qd7 {[%clk 0:00:44.2]} 29. Nf3 {[%clk
0:01:26.9]} 29... Rbc8 {[%clk 0:00:41.9]} 30. h3 {[%clk 0:01:02.3]} 30... Nf6
{[%clk 0:00:37.4]} 31. Nd2 {[%clk 0:00:57.9]} 31... Bxg2 {[%clk 0:00:35.2]} 32.
Kxg2 {[%clk 0:00:57.5]} 32... Qb7+ {[%clk 0:00:28.8]} 33. Kh2 {[%clk 0:00:56.1]}
33... Rc6 {[%clk 0:00:20.5]} 34. Rxc6 {[%clk 0:00:49.1]} 34... Qxc6 {[%clk
0:00:21.4]} 35. Qc3 {[%clk 0:00:48.7]} 35... Qd5 {[%clk 0:00:20.4]} 36. Qb3
{[%clk 0:00:47.5]} 36... Qxb3 {[%clk 0:00:19.5]} 37. Nxb3 {[%clk 0:00:46.9]}
37... Ne4 {[%clk 0:00:19.9]} 38. Be3 {[%clk 0:00:39.7]} 38... Rb8 {[%clk
0:00:20.8]} 39. Na5 {[%clk 0:00:39.5]} 39... Rxb2+ {[%clk 0:00:20.5]} 40. Kg1
{[%clk 0:00:39.2]} 40... Nxg3 {[%clk 0:00:20.7]} 41. Nc4 {[%clk 0:00:38.8]}
41... Re2 {[%clk 0:00:19.3]} 42. Rxe2 {[%clk 0:00:37.1]} 42... Nxe2+ {[%clk
0:00:18.7]} 43. Kf2 {[%clk 0:00:37.2]} 43... Nxd4 {[%clk 0:00:18.9]} 44. Nxd6
{[%clk 0:00:37.2]} 44... a5 {[%clk 0:00:19.5]} 45. Nb5 {[%clk 0:00:36.8]} 45...
Nxb5 {[%clk 0:00:18.9]} 0-1

[Event "*** Titled Tuesday Blitz"]
[Site "Chess.com"]
[Date "2020.05.12"]
[Round "9"]
[White "chesslh19"]
[Black "BhulseATX"]
[Result "1-0"]
[WhiteElo "2190"]
[BlackElo "1974"]
[TimeControl "180+1"]
[EndTime "11:43:07 PDT"]
[Termination "chesslh19 won on time"]

1. e4 {[%clk 0:03:00.9]} 1... c6 {[%clk 0:03:00]} 2. d4 {[%clk 0:03:00.5]} 2...
d5 {[%clk 0:02:59.6]} 3. Nd2 {[%clk 0:03:01.2]} 3... dxe4 {[%clk 0:02:59.2]} 4.
Nxe4 {[%clk 0:03:01.9]} 4... Nd7 {[%clk 0:02:59.4]} 5. Ng5 {[%clk 0:03:00.4]}
5... Ngf6 {[%clk 0:02:56.1]} 6. Bd3 {[%clk 0:02:59.6]} 6... e6 {[%clk
0:02:51.1]} 7. N1f3 {[%clk 0:02:59.6]} 7... Bd6 {[%clk 0:02:48]} 8. Qe2 {[%clk
0:02:58.4]} 8... h6 {[%clk 0:02:36.7]} 9. Ne4 {[%clk 0:02:58.5]} 9... Nxe4
{[%clk 0:02:35.9]} 10. Qxe4 {[%clk 0:02:58.6]} 10... Nf6 {[%clk 0:02:36]} 11.
Qe2 {[%clk 0:02:57.3]} 11... O-O {[%clk 0:02:35]} 12. Bd2 {[%clk 0:02:50.1]}
12... c5 {[%clk 0:02:32.4]} 13. O-O-O {[%clk 0:02:42.4]} 13... b6 {[%clk
0:02:23.3]} 14. dxc5 {[%clk 0:02:23.3]} 14... bxc5 {[%clk 0:02:16.2]} 15. Ne5
{[%clk 0:02:15.2]} 15... Qc7 {[%clk 0:02:10.8]} 16. f4 {[%clk 0:02:05.8]} 16...
a5 {[%clk 0:01:59.9]} 17. g4 {[%clk 0:01:53.1]} 17... Nd5 {[%clk 0:01:30.2]} 18.
h4 {[%clk 0:01:31]} 18... f6 {[%clk 0:01:01.2]} 19. Ng6 {[%clk 0:01:23.8]} 19...
Nxf4 {[%clk 0:01:00.5]} 20. Bxf4 {[%clk 0:00:58.1]} 20... Bxf4+ {[%clk 0:01:00]}
21. Kb1 {[%clk 0:00:58.8]} 21... Bd7 {[%clk 0:00:32.8]} 22. Nxf8 {[%clk
0:00:49.8]} 22... Rxf8 {[%clk 0:00:32.7]} 23. Bc4 {[%clk 0:00:44.7]} 23... Re8
{[%clk 0:00:26.7]} 24. Rhe1 {[%clk 0:00:33.2]} 24... Bc8 {[%clk 0:00:20.5]} 25.
Qe4 {[%clk 0:00:25.6]} 25... Be5 {[%clk 0:00:18]} 26. g5 {[%clk 0:00:17.6]}
26... Qb6 {[%clk 0:00:08.1]} 27. c3 {[%clk 0:00:08]} 27... Bxc3 {[%clk
0:00:07.4]} 28. Re2 {[%clk 0:00:08.2]} 28... Be5 {[%clk 0:00:03.5]} 29. gxf6
{[%clk 0:00:07.5]} 29... Bxf6 {[%clk 0:00:02.5]} 30. Qg6 {[%clk 0:00:07.3]} 1-0

[Event "*** Titled Tuesday Blitz"]
[Site "Chess.com"]
[Date "2020.05.12"]
[Round "9"]
[White "Kolle05"]
[Black "GianmarcoVaR"]
[Result "1-0"]
[WhiteElo "2408"]
[BlackElo "2524"]
[TimeControl "180+1"]
[EndTime "11:43:08 PDT"]
[Termination "Kolle05 won on time"]

1. e4 {[%clk 0:03:00.9]} 1... c6 {[%clk 0:02:54.3]} 2. Nc3 {[%clk 0:02:59.9]}
2... d5 {[%clk 0:02:45.4]} 3. Nf3 {[%clk 0:02:58.4]} 3... dxe4 {[%clk
0:02:45.5]} 4. Nxe4 {[%clk 0:02:57.6]} 4... Nf6 {[%clk 0:02:46.4]} 5. Qe2 {[%clk
0:02:57.1]} 5... Nxe4 {[%clk 0:02:46.9]} 6. Qxe4 {[%clk 0:02:58]} 6... Qd5
{[%clk 0:02:47.4]} 7. Qf4 {[%clk 0:02:52.5]} 7... Qf5 {[%clk 0:02:47.8]} 8. Qe3
{[%clk 0:02:52.5]} 8... Qe6 {[%clk 0:02:48.4]} 9. d4 {[%clk 0:02:46.1]} 9...
Qxe3+ {[%clk 0:02:41.1]} 10. Bxe3 {[%clk 0:02:47]} 10... Bf5 {[%clk 0:02:41.2]}
11. O-O-O {[%clk 0:02:45.4]} 11... e6 {[%clk 0:02:41.1]} 12. Nh4 {[%clk
0:02:41.6]} 12... Bg4 {[%clk 0:02:40]} 13. f3 {[%clk 0:02:41.2]} 13... Bh5
{[%clk 0:02:40.2]} 14. g4 {[%clk 0:02:39.2]} 14... Bg6 {[%clk 0:02:38.7]} 15.
Nxg6 {[%clk 0:02:37.2]} 15... hxg6 {[%clk 0:02:38.2]} 16. h3 {[%clk 0:02:33.6]}
16... Nd7 {[%clk 0:02:38.6]} 17. f4 {[%clk 0:02:32.5]} 17... O-O-O {[%clk
0:02:38.7]} 18. Bg2 {[%clk 0:02:32.1]} 18... Nf6 {[%clk 0:02:35]} 19. c4 {[%clk
0:02:31.4]} 19... Bd6 {[%clk 0:02:30]} 20. Kc2 {[%clk 0:02:29.5]} 20... Bc7
{[%clk 0:02:22.8]} 21. b4 {[%clk 0:02:26.6]} 21... b6 {[%clk 0:01:38.4]} 22.
Bxc6 {[%clk 0:02:17.8]} 22... Kb8 {[%clk 0:01:25.6]} 23. a4 {[%clk 0:02:14.3]}
23... Bd6 {[%clk 0:01:14.7]} 24. Kb3 {[%clk 0:02:08.3]} 24... Rc8 {[%clk
0:01:13.1]} 25. Bg2 {[%clk 0:02:07.5]} 25... a5 {[%clk 0:01:13.1]} 26. bxa5
{[%clk 0:02:05.3]} 26... bxa5 {[%clk 0:01:13]} 27. c5 {[%clk 0:02:04.9]} 27...
Bc7 {[%clk 0:01:12.8]} 28. Kc4 {[%clk 0:02:04.8]} 28... Ka7 {[%clk 0:01:12]} 29.
Rb1 {[%clk 0:02:03.9]} 29... Rb8 {[%clk 0:01:12.6]} 30. Rb5 {[%clk 0:01:57.7]}
30... Rhd8 {[%clk 0:00:40.3]} 31. Rhb1 {[%clk 0:01:32.8]} 31... Nd5 {[%clk
0:00:39.5]} 32. Bd2 {[%clk 0:01:27.5]} 32... Ka6 {[%clk 0:00:24.7]} 33. Bxa5
{[%clk 0:00:51.1]} 33... Bxa5 {[%clk 0:00:07]} 34. Rxb8 {[%clk 0:00:50.5]} 34...
Rxb8 {[%clk 0:00:06.3]} 35. Rxb8 {[%clk 0:00:51.4]} 35... Ne3+ {[%clk
0:00:06.7]} 36. Kd3 {[%clk 0:00:51.7]} 36... Nxg2 {[%clk 0:00:07.3]} 37. Ra8+
{[%clk 0:00:51.9]} 37... Kb7 {[%clk 0:00:05.4]} 38. Rxa5 {[%clk 0:00:52.8]}
38... Nxf4+ {[%clk 0:00:06.1]} 39. Ke4 {[%clk 0:00:52.6]} 39... Nxh3 {[%clk
0:00:05.1]} 40. Rb5+ {[%clk 0:00:52.5]} 40... Kc6 {[%clk 0:00:05.1]} 41. Rb6+
{[%clk 0:00:52.6]} 41... Kc7 {[%clk 0:00:05.8]} 42. a5 {[%clk 0:00:53]} 42...
Nf2+ {[%clk 0:00:06.2]} 43. Kf3 {[%clk 0:00:52.2]} 43... Nd1 {[%clk 0:00:03.7]}
44. a6 {[%clk 0:00:51.9]} 44... Nc3 {[%clk 0:00:03.6]} 45. a7 {[%clk 0:00:50.9]}
1-0

[Event "*** Titled Tuesday Blitz"]
[Site "Chess.com"]
[Date "2020.05.12"]
[Round "9"]
[White "VladDobrov"]
[Black "GelmanAlexander"]
[Result "0-1"]
[WhiteElo "2759"]
[BlackElo "2596"]
[TimeControl "180+1"]
[EndTime "11:43:11 PDT"]
[Termination "GelmanAlexander won on time"]

1. d4 {[%clk 0:03:00.9]} 1... Nf6 {[%clk 0:02:59.6]} 2. c4 {[%clk 0:03:00.9]}
2... c5 {[%clk 0:02:59.8]} 3. d5 {[%clk 0:03:00.6]} 3... b5 {[%clk 0:03:00.2]}
4. Qc2 {[%clk 0:03:00.5]} 4... b4 {[%clk 0:02:58.1]} 5. e4 {[%clk 0:03:01]} 5...
d6 {[%clk 0:02:57.2]} 6. a3 {[%clk 0:03:01.6]} 6... Nbd7 {[%clk 0:02:51.4]} 7.
f4 {[%clk 0:02:38.5]} 7... g6 {[%clk 0:02:51.1]} 8. Nf3 {[%clk 0:02:39]} 8...
Bg7 {[%clk 0:02:49.5]} 9. Bd3 {[%clk 0:02:35]} 9... O-O {[%clk 0:02:49]} 10. O-O
{[%clk 0:02:34.8]} 10... e6 {[%clk 0:02:23.2]} 11. dxe6 {[%clk 0:02:07.6]} 11...
fxe6 {[%clk 0:02:23.1]} 12. f5 {[%clk 0:02:07.8]} 12... Ne5 {[%clk 0:01:50.9]}
13. fxg6 {[%clk 0:01:39.8]} 13... Nxg6 {[%clk 0:01:37]} 14. Bg5 {[%clk
0:01:26.4]} 14... Qb6 {[%clk 0:01:28.3]} 15. Nbd2 {[%clk 0:01:19.7]} 15... e5
{[%clk 0:01:10.2]} 16. Kh1 {[%clk 0:01:01.7]} 16... a5 {[%clk 0:01:01.4]} 17.
Nh4 {[%clk 0:00:44.4]} 17... Nxh4 {[%clk 0:00:56.8]} 18. Bxh4 {[%clk 0:00:45.3]}
18... Be6 {[%clk 0:00:41]} 19. Nf3 {[%clk 0:00:42.5]} 19... Nh5 {[%clk
0:00:24.1]} 20. Ng5 {[%clk 0:00:39.7]} 20... Bd7 {[%clk 0:00:24.5]} 21. Be2
{[%clk 0:00:17.5]} 21... Nf4 {[%clk 0:00:24.1]} 22. Rad1 {[%clk 0:00:17.7]}
22... b3 {[%clk 0:00:23.7]} 23. Qd2 {[%clk 0:00:16.8]} 23... h6 {[%clk
0:00:19.9]} 24. Nf3 {[%clk 0:00:16.3]} 24... Qc6 {[%clk 0:00:19.5]} 25. Qxd6
{[%clk 0:00:15]} 25... Nxe2 {[%clk 0:00:15.7]} 26. Qxd7 {[%clk 0:00:14.5]} 26...
Qxe4 {[%clk 0:00:16]} 27. Rde1 {[%clk 0:00:09.2]} 27... Qxc4 {[%clk 0:00:15.8]}
28. Qc6 {[%clk 0:00:03.4]} 28... e4 {[%clk 0:00:13.6]} 29. Nd2 {[%clk
0:00:02.3]} 29... Qd3 {[%clk 0:00:12]} 30. Qxe4 {[%clk 0:00:01.7]} 30... Rxf1+
{[%clk 0:00:05.6]} 0-1

[Event "*** Titled Tuesday Blitz"]
[Site "Chess.com"]
[Date "2020.05.12"]
[Round "9"]
[White "Mizner"]
[Black "maciek_92"]
[Result "1-0"]
[WhiteElo "2537"]
[BlackElo "2633"]
[TimeControl "180+1"]
[EndTime "11:43:11 PDT"]
[Termination "Mizner won by resignation"]

1. d4 {[%clk 0:03:00.9]} 1... f5 {[%clk 0:02:59.2]} 2. c4 {[%clk 0:02:51.6]}
2... Nf6 {[%clk 0:02:59.4]} 3. Nc3 {[%clk 0:02:51.2]} 3... e6 {[%clk 0:02:57.3]}
4. g3 {[%clk 0:02:44.5]} 4... Bb4 {[%clk 0:02:51.7]} 5. Bd2 {[%clk 0:02:38.3]}
5... O-O {[%clk 0:02:48.9]} 6. Bg2 {[%clk 0:02:38.1]} 6... Nc6 {[%clk
0:02:44.4]} 7. Nf3 {[%clk 0:02:36.2]} 7... d6 {[%clk 0:02:40]} 8. d5 {[%clk
0:02:33.1]} 8... Ne5 {[%clk 0:02:33.5]} 9. Nxe5 {[%clk 0:02:14.8]} 9... dxe5
{[%clk 0:02:34.4]} 10. Qb3 {[%clk 0:01:46]} 10... Bxc3 {[%clk 0:02:14.8]} 11.
Bxc3 {[%clk 0:01:44.6]} 11... e4 {[%clk 0:02:10.2]} 12. dxe6 {[%clk 0:01:23.7]}
12... Bxe6 {[%clk 0:02:04.6]} 13. Qxb7 {[%clk 0:01:22.9]} 13... Bxc4 {[%clk
0:01:54.1]} 14. Rd1 {[%clk 0:01:01.5]} 14... Qc8 {[%clk 0:01:49.4]} 15. Qxc8
{[%clk 0:00:49]} 15... Raxc8 {[%clk 0:01:50.3]} 16. b3 {[%clk 0:00:48.2]} 16...
Ba6 {[%clk 0:01:44]} 17. Bh3 {[%clk 0:00:30.8]} 17... g6 {[%clk 0:01:17]} 18.
Rd4 {[%clk 0:00:21]} 18... c5 {[%clk 0:01:03.6]} 19. Rd6 {[%clk 0:00:19.8]}
19... c4 {[%clk 0:00:57]} 20. Rxf6 {[%clk 0:00:16]} 20... cxb3 {[%clk
0:00:54.4]} 21. Rxf8+ {[%clk 0:00:15.7]} 21... Kxf8 {[%clk 0:00:55.3]} 22. Kd2
{[%clk 0:00:13.5]} 22... bxa2 {[%clk 0:00:55.2]} 23. Ra1 {[%clk 0:00:13.5]}
23... Bc4 {[%clk 0:00:53.9]} 24. Bf1 {[%clk 0:00:12.5]} 24... Rb8 {[%clk
0:00:52.2]} 25. e3 {[%clk 0:00:11.5]} 25... Bxf1 {[%clk 0:00:51.9]} 26. Rxf1
{[%clk 0:00:11.2]} 26... Rb1 {[%clk 0:00:52.5]} 27. Rc1 {[%clk 0:00:11.5]} 27...
g5 {[%clk 0:00:40.1]} 28. Kc2 {[%clk 0:00:11.8]} 28... Rxc1+ {[%clk 0:00:40.5]}
29. Kxc1 {[%clk 0:00:12]} 29... Kf7 {[%clk 0:00:41.4]} 30. Kb2 {[%clk
0:00:11.8]} 30... Kg6 {[%clk 0:00:42.3]} 31. Kxa2 {[%clk 0:00:11.5]} 31... Kh5
{[%clk 0:00:42.8]} 32. h3 {[%clk 0:00:11.8]} 32... Kg6 {[%clk 0:00:41]} 33. Kb3
{[%clk 0:00:11.4]} 33... f4 {[%clk 0:00:38.2]} 34. Kc4 {[%clk 0:00:10.6]} 34...
h5 {[%clk 0:00:36.4]} 35. Kd5 {[%clk 0:00:10.3]} 35... Kf5 {[%clk 0:00:37]} 36.
Bd2 {[%clk 0:00:08.8]} 36... a5 {[%clk 0:00:27.4]} 37. Bxa5 {[%clk 0:00:07.7]}
37... g4 {[%clk 0:00:25.7]} 38. h4 {[%clk 0:00:04.2]} 1-0

[Event "*** Titled Tuesday Blitz"]
[Site "Chess.com"]
[Date "2020.05.12"]
[Round "9"]
[White "SGchess01"]
[Black "mirceaparligras"]
[Result "1-0"]
[WhiteElo "2756"]
[BlackElo "2574"]
[TimeControl "180+1"]
[EndTime "11:43:12 PDT"]
[Termination "SGchess01 won by resignation"]

1. d4 {[%clk 0:03:00.9]} 1... Nf6 {[%clk 0:02:59.6]} 2. Bf4 {[%clk 0:03:00.9]}
2... d5 {[%clk 0:02:59.2]} 3. e3 {[%clk 0:03:00.7]} 3... c5 {[%clk 0:02:59.2]}
4. Nc3 {[%clk 0:02:59.2]} 4... cxd4 {[%clk 0:02:54.7]} 5. exd4 {[%clk
0:03:00.1]} 5... a6 {[%clk 0:02:49.6]} 6. Nf3 {[%clk 0:02:56.8]} 6... Nc6 {[%clk
0:02:50]} 7. Ne5 {[%clk 0:02:56.4]} 7... e6 {[%clk 0:02:45.9]} 8. Nxc6 {[%clk
0:02:55.7]} 8... bxc6 {[%clk 0:02:46]} 9. Na4 {[%clk 0:02:56.2]} 9... Be7 {[%clk
0:02:40.6]} 10. Bd3 {[%clk 0:02:54.4]} 10... O-O {[%clk 0:02:39.9]} 11. O-O
{[%clk 0:02:54.5]} 11... a5 {[%clk 0:02:39.1]} 12. Re1 {[%clk 0:02:53.6]} 12...
Ba6 {[%clk 0:02:38]} 13. Bxa6 {[%clk 0:02:48.3]} 13... Rxa6 {[%clk 0:02:37.6]}
14. Rc1 {[%clk 0:02:45.5]} 14... Ra7 {[%clk 0:02:30.9]} 15. c4 {[%clk
0:02:43.9]} 15... dxc4 {[%clk 0:02:24.1]} 16. Rxc4 {[%clk 0:02:44.8]} 16... Qd5
{[%clk 0:02:10.3]} 17. b3 {[%clk 0:02:41.7]} 17... Rd8 {[%clk 0:02:02.3]} 18.
Qc2 {[%clk 0:02:38.9]} 18... Ra6 {[%clk 0:01:53.6]} 19. h3 {[%clk 0:02:36.3]}
19... h6 {[%clk 0:01:53]} 20. Rc1 {[%clk 0:02:18.8]} 20... Ba3 {[%clk
0:01:41.7]} 21. Re1 {[%clk 0:02:10.6]} 21... Bb4 {[%clk 0:01:36.5]} 22. Re5
{[%clk 0:02:09.2]} 22... Qd7 {[%clk 0:01:35.7]} 23. Bd2 {[%clk 0:02:02.5]} 23...
Qa7 {[%clk 0:01:13.9]} 24. Bxb4 {[%clk 0:01:58.4]} 24... axb4 {[%clk 0:01:14.8]}
25. Rec5 {[%clk 0:01:54.3]} 25... Nd5 {[%clk 0:01:07.8]} 26. h4 {[%clk
0:01:46.1]} 26... Qe7 {[%clk 0:01:01.9]} 27. g3 {[%clk 0:01:44.3]} 27... Qf6
{[%clk 0:01:01.9]} 28. Kg2 {[%clk 0:01:38.1]} 28... h5 {[%clk 0:00:58.3]} 29.
Qe2 {[%clk 0:01:37.6]} 29... g6 {[%clk 0:00:57.5]} 30. Qe4 {[%clk 0:01:30.1]}
30... Nc3 {[%clk 0:00:41]} 31. Nxc3 {[%clk 0:01:27.7]} 31... bxc3 {[%clk
0:00:41.9]} 32. a4 {[%clk 0:01:20.2]} 32... Rb6 {[%clk 0:00:42]} 33. b4 {[%clk
0:01:16.7]} 33... c2 {[%clk 0:00:40.4]} 34. Qxc2 {[%clk 0:01:08.8]} 34... Rxd4
{[%clk 0:00:39.5]} 35. Qb2 {[%clk 0:00:52.9]} 35... e5 {[%clk 0:00:35.1]} 36.
Rxd4 {[%clk 0:00:40.5]} 36... exd4 {[%clk 0:00:34.9]} 37. a5 {[%clk 0:00:41.4]}
37... Ra6 {[%clk 0:00:29.6]} 38. Qe2 {[%clk 0:00:39.6]} 38... Ra8 {[%clk
0:00:27.6]} 39. Qe4 {[%clk 0:00:38.8]} 39... Rc8 {[%clk 0:00:15.4]} 40. b5
{[%clk 0:00:37.7]} 40... d3 {[%clk 0:00:12.7]} 41. Qxd3 {[%clk 0:00:37.7]} 41...
Qe7 {[%clk 0:00:11.5]} 42. Rxc6 {[%clk 0:00:34.2]} 42... Rxc6 {[%clk 0:00:10.7]}
43. bxc6 {[%clk 0:00:35.1]} 43... Qc5 {[%clk 0:00:11.1]} 44. Qd7 {[%clk
0:00:33.8]} 44... Qxa5 {[%clk 0:00:09.7]} 45. c7 {[%clk 0:00:34.2]} 45... Qa8+
{[%clk 0:00:10.6]} 46. Kh2 {[%clk 0:00:34.2]} 1-0

[Event "*** Titled Tuesday Blitz"]
[Site "Chess.com"]
[Date "2020.05.12"]
[Round "9"]
[White "26andrej26"]
[Black "Kopytkin"]
[Result "0-1"]
[WhiteElo "2457"]
[BlackElo "2357"]
[TimeControl "180+1"]
[EndTime "11:43:12 PDT"]
[Termination "Kopytkin won on time"]

1. e4 {[%clk 0:03:00.9]} 1... Nf6 {[%clk 0:03:00.1]} 2. e5 {[%clk 0:03:00.8]}
2... Nd5 {[%clk 0:02:59.6]} 3. d4 {[%clk 0:03:01.7]} 3... d6 {[%clk 0:03:00]} 4.
c4 {[%clk 0:03:02]} 4... Nb6 {[%clk 0:03:00.2]} 5. f4 {[%clk 0:03:02.8]} 5...
dxe5 {[%clk 0:03:00.2]} 6. fxe5 {[%clk 0:03:03.7]} 6... c5 {[%clk 0:03:00.7]} 7.
d5 {[%clk 0:03:03]} 7... e6 {[%clk 0:03:01.2]} 8. Nc3 {[%clk 0:03:00.6]} 8...
exd5 {[%clk 0:03:01.5]} 9. cxd5 {[%clk 0:02:56.3]} 9... c4 {[%clk 0:03:01.9]}
10. Be3 {[%clk 0:02:51.3]} 10... Bb4 {[%clk 0:02:58.6]} 11. d6 {[%clk
0:02:39.9]} 11... O-O {[%clk 0:02:55.9]} 12. Nf3 {[%clk 0:02:39.8]} 12... Nc6
{[%clk 0:02:55.9]} 13. Kf2 {[%clk 0:02:07.5]} 13... Bg4 {[%clk 0:02:45.6]} 14.
Nd5 {[%clk 0:02:01.2]} 14... Ba5 {[%clk 0:02:15.3]} 15. Bf4 {[%clk 0:01:30.2]}
15... Nxd5 {[%clk 0:01:34.1]} 16. Qxd5 {[%clk 0:01:27.1]} 16... Qb6+ {[%clk
0:01:26.2]} 17. Kg3 {[%clk 0:01:27]} 17... Be6 {[%clk 0:01:26.2]} 18. Qe4 {[%clk
0:01:22.3]} 18... Rae8 {[%clk 0:01:04.5]} 19. Ng5 {[%clk 0:01:14.4]} 19... g6
{[%clk 0:00:58.4]} 20. Nxe6 {[%clk 0:01:14.4]} 20... Rxe6 {[%clk 0:00:58.4]} 21.
Bxc4 {[%clk 0:01:14.2]} 21... Ree8 {[%clk 0:00:38.7]} 22. Bb3 {[%clk 0:00:37.7]}
22... Qd4 {[%clk 0:00:35.2]} 23. Qxd4 {[%clk 0:00:30.2]} 23... Nxd4 {[%clk
0:00:36.1]} 24. Bh6 {[%clk 0:00:29.5]} 24... Nf5+ {[%clk 0:00:36.3]} 25. Kf4
{[%clk 0:00:26.4]} 25... Nxh6 {[%clk 0:00:37.2]} 26. g4 {[%clk 0:00:21]} 26...
Kg7 {[%clk 0:00:35.2]} 27. Rad1 {[%clk 0:00:14.9]} 27... Bb6 {[%clk 0:00:34.3]}
28. Rhe1 {[%clk 0:00:13.3]} 28... Bf2 {[%clk 0:00:32]} 29. Re2 {[%clk
0:00:12.6]} 29... Bh4 {[%clk 0:00:32.2]} 30. g5 {[%clk 0:00:05.5]} 30... Nf5
{[%clk 0:00:31.3]} 31. Kg4 {[%clk 0:00:05.7]} 31... h6 {[%clk 0:00:30.2]} 32.
gxh6+ {[%clk 0:00:05.8]} 32... Kxh6 {[%clk 0:00:30.7]} 33. d7 {[%clk 0:00:04.8]}
33... Rd8 {[%clk 0:00:30.4]} 34. e6 {[%clk 0:00:05.3]} 34... fxe6 {[%clk
0:00:29.8]} 35. Rxe6 {[%clk 0:00:05.4]} 35... Bg5 {[%clk 0:00:26.5]} 36. Bc2
{[%clk 0:00:04.1]} 36... Ne3+ {[%clk 0:00:25.1]} 37. Kg3 {[%clk 0:00:02.1]}
37... Nxc2 {[%clk 0:00:21.9]} 0-1

[Event "*** Titled Tuesday Blitz"]
[Site "Chess.com"]
[Date "2020.05.12"]
[Round "9"]
[White "ZeZacarias"]
[Black "BikingBrian"]
[Result "1-0"]
[WhiteElo "2068"]
[BlackElo "2213"]
[TimeControl "180+1"]
[EndTime "11:43:12 PDT"]
[Termination "ZeZacarias won by resignation"]

1. d4 {[%clk 0:03:00.9]} 1... Nf6 {[%clk 0:02:57.1]} 2. c4 {[%clk 0:03:01.4]}
2... g6 {[%clk 0:02:54.8]} 3. Nc3 {[%clk 0:03:00.9]} 3... Bg7 {[%clk 0:02:55]}
4. e4 {[%clk 0:03:00.3]} 4... d6 {[%clk 0:02:55.2]} 5. Nf3 {[%clk 0:03:00.1]}
5... O-O {[%clk 0:02:55.4]} 6. h3 {[%clk 0:03:00.4]} 6... e5 {[%clk 0:02:54.7]}
7. d5 {[%clk 0:03:00.4]} 7... Na6 {[%clk 0:02:51.9]} 8. g4 {[%clk 0:02:59.9]}
8... Nc5 {[%clk 0:02:49.2]} 9. Qc2 {[%clk 0:02:59.6]} 9... a5 {[%clk 0:02:49.1]}
10. Bg5 {[%clk 0:02:58]} 10... h6 {[%clk 0:02:48]} 11. Be3 {[%clk 0:02:57.2]}
11... c6 {[%clk 0:02:40]} 12. Be2 {[%clk 0:02:54.3]} 12... cxd5 {[%clk
0:02:39.3]} 13. cxd5 {[%clk 0:02:40.2]} 13... a4 {[%clk 0:02:35]} 14. O-O-O
{[%clk 0:02:31.7]} 14... Bd7 {[%clk 0:02:19.9]} 15. Bxc5 {[%clk 0:02:27.9]}
15... dxc5 {[%clk 0:02:19.8]} 16. g5 {[%clk 0:02:24.7]} 16... Ne8 {[%clk
0:02:08.9]} 17. gxh6 {[%clk 0:02:19.1]} 17... Bxh6+ {[%clk 0:02:08.7]} 18. Kb1
{[%clk 0:02:19.8]} 18... Qe7 {[%clk 0:01:49.9]} 19. d6 {[%clk 0:01:48.8]} 19...
Nxd6 {[%clk 0:01:48.7]} 20. Nd5 {[%clk 0:01:48.7]} 20... Qd8 {[%clk 0:01:39.5]}
21. Nxe5 {[%clk 0:01:48.5]} 21... Nxe4 {[%clk 0:01:33.1]} 22. Nxd7 {[%clk
0:01:48.1]} 22... Nxf2 {[%clk 0:01:07]} 23. Bc4 {[%clk 0:01:32.5]} 23... Nxh1
{[%clk 0:00:55.7]} 24. Rxh1 {[%clk 0:01:31.1]} 24... Bg7 {[%clk 0:00:35.3]} 25.
N5b6 {[%clk 0:01:08]} 25... Qh4 {[%clk 0:00:22.3]} 26. Qxg6 {[%clk 0:01:02.3]}
26... Qxc4 {[%clk 0:00:21.4]} 27. Qxg7+ {[%clk 0:01:01.8]} 27... Kxg7 {[%clk
0:00:20.8]} 28. Nxc4 {[%clk 0:01:02.3]} 28... Rfd8 {[%clk 0:00:20.6]} 29. Rg1+
{[%clk 0:01:01.3]} 29... Kh6 {[%clk 0:00:20.1]} 30. Nce5 {[%clk 0:00:59.2]}
30... f6 {[%clk 0:00:17.8]} 31. Nf7+ {[%clk 0:00:58.7]} 31... Kh5 {[%clk
0:00:16.5]} 32. Nxd8 {[%clk 0:00:59]} 32... Rxd8 {[%clk 0:00:17.3]} 33. Nxf6+
{[%clk 0:00:59.4]} 33... Kh4 {[%clk 0:00:16.7]} 34. Ne4 {[%clk 0:00:48.9]} 34...
c4 {[%clk 0:00:15.2]} 35. Nf2 {[%clk 0:00:44.8]} 35... Rd2 {[%clk 0:00:13.5]}
36. Rg4+ {[%clk 0:00:44.3]} 36... Kh5 {[%clk 0:00:13.9]} 37. Ne4 {[%clk
0:00:43]} 37... Rh2 {[%clk 0:00:13.5]} 38. Ng3+ {[%clk 0:00:42.5]} 38... Kh6
{[%clk 0:00:13.3]} 39. h4 {[%clk 0:00:41.8]} 39... b5 {[%clk 0:00:12.1]} 40.
Nf5+ {[%clk 0:00:40.4]} 40... Kh7 {[%clk 0:00:11.9]} 41. Rg7+ {[%clk 0:00:39.9]}
41... Kh8 {[%clk 0:00:12]} 42. Rb7 {[%clk 0:00:39.3]} 42... a3 {[%clk
0:00:10.9]} 43. Rxb5 {[%clk 0:00:37.8]} 43... axb2 {[%clk 0:00:09.3]} 44. Rxb2
{[%clk 0:00:37.5]} 44... Rxh4 {[%clk 0:00:09.3]} 45. Nxh4 {[%clk 0:00:36.3]} 1-0